Workbook

Sheet Title Page
D13: Organic Alfalfa Management Guide
D15: Spreadsheet for Dryland Organic Alfalfa Production
I27: Photo by Rob Mikkelson
F34: Kathleen Painter, PhD
F35: Analyst, Center for Sustaining Ag and Natural Resources
F36: Affiliate, School of Economic Sciences
F37: 207A Hulbert Hall
F38: Pullman WA 99164-6210
F39: (509) 335-5807
F40: kpainter@wsu.edu

Sheet Contents
B3: Table of Contents
B5: Table 1. Summary of Returns for Dryland Organic Alfalfa Production ($/acre/yr)
B6: Table 2. Input Costs
B7: Table 3. Schedule of Operations for Establishing Dryland Organic Alfalfa, <15" Annual Rainfall
B8: Table 4. Production Costs for Establishing Dryland Organic Alfalfa, <15" Annual Rainfall
B9: Table 5. Schedule of Operations for Establishing Dryland Organic Alfalfa, <15" Annual Rainfall
B10: Table 6. Production Costs for Establishing Dryland Organic Alfalfa, >15" Annual Rainfall
B11: Table 7. Schedule of Operations for Producing Organic Dryland Alfalfa, 1 Cutting
B12: Table 8. Production Costs for Dryland Organic Alfalfa Production, 1 cutting
B13: Table 9. Schedule of Operations for Producing Dryland Organic Alfalfa, >15" Annual Rainfall (2 cuttings)
B14: Table 10. Production Costs for Dryland Organic Alfalfa Production, > 15" Annual Rainfall (2 cuttings)
B15: Table 11. Per Acre Machinery Costs by Type
B16: Table 12. Per Acre Machinery Costs for Establishing Dryland Organic Alfalfa, <15" Annual Rainfall (1 cutting)
B17: Table 13. Per Acre Machinery Costs for Establishing Dryland Organic Alfalfa, >15" Annual Rainfall (1 cutting)
B18: Table 14. Per Acre Machinery Costs for Producing Dryland Organic Alfalfa, <15" Annual Rainfall (1 cutting)
B19: Table 15. Per Acre Machinery Costs for Producing Dryland Organic Alfalfa, >15" Annual Rainfall (2 cuttings)
B20: Table 16. Machinery Complement for Dryland Organic Alfalfa Production

Sheet T1 Summary
B1: Input Costs | D1: Machinery Complement
B2: Legend: Follow directions below to preserve equations in this spreadsheet.
B3: Yellow cells: Data are from Summary page (yellow tab).
B4: Orange cells: Revise data here to reflect your situation.
B5: Green cells: Data are from Input Costs page (green tab).
B6: Blue cells: Data are from the Machinery page (blue tab).
B7: Please change yield, price, and length of stand assumptions as necessary to reflect your situation.
B8: Table 1. Summary of Returns for Dryland Organic Alfalfa Production ($/acre/yr)
D10: Total | K10: Total
D11: Cost (TC) of | F11: Yield | H11: Price | I11: Revenue | J11: Returns | K11: Operating | L11: Returns
D12: Operation | E12: Unit | F12: per acre | H12: per unit | I12: per acre | J12: over TC | K12: Costs (OC) | L12: over OC
D13: ($/acre) | F13: (units/ac) | H13: ($/unit) | I13: ($/acre) | J13: ($/acre) | K13: ($/acre) | L13: ($/acre)
B14: Under 15" rainfall:
B15: Alfalfa Establishment | D15: =+'T4 Alfalfa Est <15" ppt'!$J$72 -> 230.9429286 | E15: ton | F15: 1.5 | H15: 200 | I15: =+H15*F15 -> 300 | J15: =+F15*H15-D15 -> 69.05707143 | K15: =+'T4 Alfalfa Est <15" ppt'!$J$57 -> 130.8164286 | L15: =+I15-K15 -> 169.1835714
B16: Production, 1 cutting | D16: =+'T8 Alf Prod, 1 cutting'!$J$68 -> 87.8985 | E16: ton | F16: 2.5 | H16: 200 | I16: =+H16*F16 -> 500 | J16: =+F16*H16-D16 -> 412.1015 | K16: =+'T8 Alf Prod, 1 cutting'!$J$51 -> 0 | L16: =+I16-K16 -> 500
B17: Length of stand (yrs) | C17: 10
B19: 15" or more rainfall:
B20: Alfalfa Establishment | D20: =+'T6 Alfalfa Est >15" ppt'!J72 -> 253.1959286 | E20: ton | F20: 2.5 | H20: 200 | I20: =+H20*F20 -> 500 | J20: =+F20*H20-D20 -> 246.8040714 | K20: =+'T6 Alfalfa Est >15" ppt'!$J$57 -> 133.9484286 | L20: =+I20-K20 -> 366.0515714
B21: Production, 2 cuttings | D21: =+'T10 Alf Prod, 2 cuttings'!$J$67 -> 400.9152107 | E21: ton | F21: 3.5 | H21: 200 | I21: =+H21*F21 -> 700 | J21: =+F21*H21-D21 -> 299.0847893 | K21: =+'T10 Alf Prod, 2 cuttings'!$J$51 -> 286.6167107 | L21: =+I21-K21 -> 413.3832893
B22: Length of stand (yrs) | C22: 5
B24: NOTES: Production costs include an amortized payment each year if losses are incurred during establishment.
B25: Areas with less than 15" annual rainfall are assumed to need re-seeding 1 year in 5 and to have 1 cutting per year.
B26: Areas with 15" or more annual rainfall are assumed to require re-seeding 1 year in 10 and to have 2 cuttings per year.
B28: ASSUMPTIONS:
B29: 1. Land values are assumed to be $1500 per acre for land with < 15" precipitation per year and $2000 per acre for land 15" or more precipitation per year.
B30: Annual land rent is assumed to be 4% of the market value of the land per year, representing an appropriate return on investment.
B31: Land value can be changed in the Input Costs tab.
B32: 2. The interest rate on machinery and operating costs is assumed to be 7%.
B33: 3. All labor costs are estimated at $20.00/hour. This value can be changed in the Input Costs tab.
B34: 4. Machinery replacement schedule as well as other machinery assumptions are listed in the Machinery Complement and Machinery Costs tabs.
B35: 5. For the purpose of machinery use calculations, farm size is assumed to be 1500 acres.
B36: 6. Click on the links above to view input cost and machinery complement assumptions.

Sheet T2 Input Costs
B1: Back to Summary | D1: Back to Contents
B2: Legend: Follow directions below to preserve equations in this spreadsheet.
B3: Yellow cells: Data are from Summary page (yellow tab).
B4: Orange cells: Revise data here to reflect your situation.
B5: Green cells: Data are from Input Costs page (green tab).
B6: Blue cells: Data are from the Machinery page (blue tab).
B8: Table 2. Input Costs
B10: Fuel: | C10: Unit | D10: Price/unit
B11: Diesel | C11: gal | D11: 2.5
B12: Gas | C12: gal | D12: 1.75
B14: Seed:
B15: Alfalfa Seed | C15: lb | D15: 3
B17: Fertilizer:
B18: Manure (hauled & spread) | C18: ton | D18: 25
B20: Labor:
B21: Hourly machine labor* | C21: hour | D21: 20
B23: Other:
B24: Soil test | C24: acre | D24: 0.3
B25: Twine | C25: ton | D25: 2
B26: Tarping | C26: ton | D26: 4
B27: Stacking | C27: ton | D27: 9
B28: Gopher control | C28: acre | D28: 2
B29: Crop insurance | C29: ton | D29: 2
B30: Land tax | C30: acre | D30: 5.5
B31: Land value, <15" precipitation | C31: acre | D31: 1500
B32: Land value, >=15" precipitation | C32: acre | D32: 2000
B34: *Includes all applicable state and federal taxes.

Sheet T3 Alf Est Calendar <15" ppt
B1: Back to Summary | D1: Alfalfa Establishment, <15" ppt | G1: Machine Costs | I1: Machine Complement
B2: Table 3. Schedule of Operations for Establishing Dryland Organic Alfalfa, <15" Annual Rainfall
B3: Month | C3: Operation | D3: Tooling
B5: November | C5: Chisel | D5: 300HP-WT, 23' Chisel Plow
B7: April | C7: Soil test
B9: April | C9: Apply Manure | D9: Custom spreading
B11: April | C11: Disc | D11: 300HP-WT, 35' Tandem Disc
B13: April | C13: Harrow | D13: 300HP-WT, 53' Rotary Harrow
B15: April | C15: Pack | D15: 300HP-WT, 40' Packer
B17: April | C17: Drill | D17: 300HP-WT, 30' Disc Drill
B19: June | C19: Mow Weeds | D19: 300HP-WT, 20' Flail Shredder
B21: July | C21: Swath Forage | D21: 18' Swather
B23: July | C23: Bale Forage | D23: 300HP-WT, 1500-lb Round Baler
B25: July | C25: Pick up & stack bales | D25: 300HP-WT, Bale Spear
B27: August | C27: Mow Weeds | D27: 300HP-WT, 20' Flail Shredder
B29: September | C29: Mow Weeds | D29: 300HP-WT, 20' Flail Shredder

Sheet T4 Alfalfa Est <15" ppt
B1: Back to Summary | D1: Input Costs | F1: Calendar | H1: Machine Costs | J1: Machine Complement
B2: Legend: Follow directions below to preserve equations in this spreadsheet.
B3: Yellow cells: Data are from Summary page (yellow tab).
B4: Orange cells: Revise data here to reflect your situation.
B5: Green cells: Data are from Input Costs page (green tab).
B6: Blue cells: Data are from the Machinery page (blue tab).
B7: Please change yield, price, and length of stand assumptions as necessary to reflect your situation.
B8: Table 4. Production Costs for Establishing Dryland Organic Alfalfa, <15" Annual Rainfall
D9: Quantity | H9: Price or | J9: Value or
B10: Item | D10: Per Acre | F10: Unit | H10: Cost/Unit | J10: Cost/Acre
B12: Gross Returns
B13: Alfalfa | D13: =LowRainfallEstYd -> 1.5 | F13: ton | H13: ='T1 Summary'!H15 -> 200 | J13: =D13*H13 -> 300
B15: Operating Inputs
B17: Seed: | J17: =SUM(J18:J21) -> 43.2
B18: Alfalfa Seed | D18: 12 | F18: lb | H18: =+AlfalfaSeed -> 3 | J18: =D18*H18 -> 36
B19: Alfalfa Seed for re-seeding | D19: =+D18*0.2 -> 2.4 | F19: lb | H19: =+AlfalfaSeed -> 3 | J19: =D19*H19 -> 7.2
B20: (assume 20% of the time)
B23: Fertilizer: | J23: =SUM(J24:J26) -> 0
B24: Manure or organic fertilizer | F24: ton | H24: =+Manure -> 25 | J24: =D24*H24 -> 0
J25: =D25*H25 -> 0
J26: =D26*H26 -> 0
B28: Pesticides: | J28: =SUM(J29:J30) -> 0
J29: =D29*H29 -> 0
J30: =D30*H30 -> 0
B33: Custom & Consultants: | J33: =SUM(J34:J36) -> 0.3
B34: Soil Test | D34: 1 | F34: acre | H34: 0.3 | J34: =D34*H34 -> 0.3
B39: Machinery Costs:
B40: Fuel | D40: =+'T11-15 Machinery Costs'!I48 -> 9.265571429 | F40: gal | H40: =+Diesel -> 2.5 | J40: =D40*H40 -> 23.16392857
B41: Lubricants | D41: 1 | F41: acre | H41: =+'T11-15 Machinery Costs'!J48 -> 4.892 | J41: =D41*H41 -> 4.892
B42: Machinery Repairs | D42: 1 | F42: acre | H42: =+'T11-15 Machinery Costs'!G48 -> 11.12 | J42: =D42*H42 -> 11.12
B43: Machinery Labor | D43: =+'T11-15 Machinery Costs'!M48 -> 1.4754 | F43: acre | H43: =+HourlyMachineLabor -> 20 | J43: =D43*H43 -> 29.508
B45: Other: | J45: =SUM(J47:J52) -> 11
B46: Twine | D46: =+$D$13 -> 1.5 | F46: ton | H46: =twine -> 2 | J46: =D46*H46 -> 3
B47: Crop insurance | D47: =+$D$13 -> 1.5 | F47: ton | H47: =+cropinsurance -> 2 | J47: 3
B48: Gopher control | D48: 1 | F48: acre | H48: =+gophercontrol -> 2 | J48: 2
B49: Tarping | D49: =+D13 -> 1.5 | F49: ton | H49: =+tarping -> 4 | J49: 6
B50: Storage Facility & Equip. Repairs | J50: 0
B51: Other Labor | J51: 0
B54: Overhead1 | J54: =+($J$17+$J$23+$J$28+$J$33+$J$45)*0.05 -> 2.725
B55: Operating Interest2 | J55: =+($J$17+$J$23+$J$28+$J$33+$J$45)*0.07*0.5 -> 1.9075
B57: Total Operating Costs | J57: =SUM(J17:J55)-(J17+J23+J28+J33+J45) -> 130.8164286
B58: Operating Costs per Unit | J58: =J57/D13 -> 87.21095238
B60: Net Returns Above Operating Expenses | J60: =J13-J57 -> 169.1835714
B62: Ownership Costs:
B63: Machinery depreciation | J63: =+'T11-15 Machinery Costs'!C48 -> 18.9165
B64: Machinery interest | J64: =+'T11-15 Machinery Costs'!D48 -> 12.529
B65: Machinery insurance, taxes housing, licenses | J65: =+'T11-15 Machinery Costs'!E48 -> 3.181
B66: Land Cost | D66: 0.04 | F66: percent | H66: =landvalue1 -> 1500 | J66: =+H66*D66 -> 60
B67: Land Taxes | D67: 1 | F67: acre | H67: =landtax -> 5.5 | J67: =D67*H67 -> 5.5
B69: Total Ownership Costs | J69: =SUM(J62:J67) -> 100.1265
B70: Ownership Costs per Unit | J70: =J69/D13 -> 66.751
B72: Total Costs per Acre | J72: =J57+J69 -> 230.9429286
B73: Total Cost per Unit | J73: =J72/D13 -> 153.9619524
B75: Returns to Risk | J75: =J13-J72 -> 69.05707143
B77: 1Covers legal, accounting, and utility fees. Calculated as 5% of operating expenses.
B78: 2Calculated at 7% interest on operating capital for 6 months.
B81: Breakeven Analysis: | D81: - | F81: Base | H81: +
D82: 0.1 | H82: 0.1
F83: Yield
B84: Price | D84: =F84*(1-D82) -> 1.35 | F84: =D13 -> 1.5 | H84: =F84*1.05 -> 1.575
B86: Operating Cost Breakeven | D86: =$J$57/D84 -> 96.9010582 | F86: =$J$57/F84 -> 87.21095238 | H86: =$J$57/H84 -> 83.05804989
B88: Ownership Cost Breakeven | D88: =$J$69/D84 -> 74.16777778 | F88: =$J$69/F84 -> 66.751 | H88: =$J$69/H84 -> 63.57238095
B90: Total Cost Breakeven | D90: =$J$72/D84 -> 171.068836 | F90: =$J$72/F84 -> 153.9619524 | H90: =$J$72/H84 -> 146.6304308
F93: Price
B94: Yield | D94: =F94*(1-D82) -> 180 | F94: =H13 -> 200 | H94: =F94*(1+H82) -> 220
B96: Operating Cost Breakeven | D96: =$J$57/D94 -> 0.7267579365 | F96: =$J$57/F94 -> 0.6540821429 | H96: =$J$57/H94 -> 0.5946201299
B98: Ownership Cost Breakeven | D98: =$J$69/D94 -> 0.5562583333 | F98: =$J$69/F94 -> 0.5006325 | H98: =$J$69/H94 -> 0.4551204545
B100: Total Cost Breakeven | D100: =$J$72/D94 -> 1.28301627 | F100: =$J$72/F94 -> 1.154714643 | H100: =$J$72/H94 -> 1.049740584

Sheet T5 Alf Est Calendar >15" ppt
B1: Back to Summary | D1: Input Costs | E1: Alfalfa Establishment >15" ppt | G1: Machine Costs | I1: Machine Complement
B3: Table 5. Schedule of Operations for Establishing Dryland Organic Alfalfa, >15" Annual Rainfall
B4: Month | C4: Operation | D4: Tooling
B6: November | C6: Chisel | D6: 300HP-WT, 23' Chisel Plow
B8: April | C8: Soil test
B10: April | C10: Apply Manure | D10: Custom spreading
B12: April | C12: Disc | D12: 300HP-WT, 35' Tandem Disc
B14: April | C14: Harrow | D14: 300HP-WT, 53' Rotary Harrow
B16: April | C16: Pack | D16: 300HP-WT, 40' Packer
B18: April | C18: Drill | D18: 300HP-WT, 30' Disc Drill
B20: June | C20: Mow Weeds | D20: 300HP-WT, 20' Flail Shredder
B22: July | C22: Swath Forage | D22: 18' Swather
B24: July | C24: Bale Forage | D24: 300HP-WT, 1500-lb Round Baler
B26: July | C26: Pick up & stack bales | D26: 300HP-WT, Bale Spear
B28: August | C28: Swath Forage | D28: 18' Swather
B30: August | C30: Bale Forage | D30: 300HP-WT, 1500-lb Round Baler
B32: August | C32: Pick up & stack bales | D32: 300HP-WT, Bale Spear
B34: September | C34: Mow Weeds | D34: 300HP-WT, 20' Flail Shredder

Sheet T6 Alfalfa Est >15" ppt
B1: Back to Summary | D1: Input Costs | F1: Calendar | H1: Machine Costs | J1: Machine Complement
B2: Legend: Follow directions below to preserve equations in this spreadsheet.
B3: Yellow cells: Data are from Summary page (yellow tab).
B4: Orange cells: Revise data here to reflect your situation.
B5: Green cells: Data are from Input Costs page (green tab).
B6: Blue cells: Data are from the Machinery page (blue tab).
B7: Please change yield, price, and length of stand assumptions as necessary to reflect your situation.
B8: Table 6. Production Costs for Establishing Dryland Organic Alfalfa, >15" Annual Rainfall
D9: Quantity | H9: Price or | J9: Value or
B10: Item | D10: Per Acre | F10: Unit | H10: Cost/Unit | J10: Cost/Acre
B12: Gross Returns
B13: Alfalfa | D13: =HighRainfallEstYd -> 2.5 | F13: ton | H13: =+'T1 Summary'!H20 -> 200 | J13: =D13*H13 -> 500
B15: Operating Inputs
B17: Seed: | J17: =SUM(J18:J21) -> 39.6
B18: Alfalfa Seed | D18: 12 | F18: lb | H18: =+AlfalfaSeed -> 3 | J18: =D18*H18 -> 36
B19: Alfalfa Seed for re-seeding | D19: =+D18*0.1 -> 1.2 | F19: lb | H19: =+AlfalfaSeed -> 3 | J19: =D19*H19 -> 3.6
B20: (assume 10% of the time)
B23: Fertilizer: | J23: =SUM(J24:J26) -> 0
B24: Manure or organic fertilizer | F24: ton | H24: =+Manure -> 25 | J24: =D24*H24 -> 0
J25: =D25*H25 -> 0
J26: =D26*H26 -> 0
B28: Pesticides: | J28: =SUM(J29:J30) -> 0
J29: =D29*H29 -> 0
J30: =D30*H30 -> 0
B33: Custom & Consultants: | J33: =SUM(J34:J36) -> 0.3
B34: Soil Test | D34: 1 | F34: acre | H34: 0.3 | J34: =D34*H34 -> 0.3
B38: Machinery Costs:
B39: Fuel | D39: =+'T11-15 Machinery Costs'!I75 -> 9.051571429 | F39: gal | H39: =+Diesel -> 2.5 | J39: =D39*H39 -> 22.62892857
B40: Lubricants | D40: 1 | F40: acre | H40: =+'T11-15 Machinery Costs'!J75 -> 4.779 | J40: =D40*H40 -> 4.779
B41: Machinery Repairs | D41: 1 | F41: acre | H41: =+'T11-15 Machinery Costs'!G75 -> 10.815 | J41: =D41*H41 -> 10.815
B42: Machinery Labor | D42: =+'T11-15 Machinery Costs'!M75 -> 1.44945 | F42: acre | H42: =+HourlyMachineLabor -> 20 | J42: =D42*H42 -> 28.989
B44: Other: | J44: =SUM(J46:J50) -> 17
B45: Twine | D45: =+$D$13 -> 2.5 | F45: ton | H45: =twine -> 2 | J45: =D45*H45 -> 5
B46: Crop insurance | D46: =+$D$13 -> 2.5 | F46: ton | H46: =+cropinsurance -> 2 | J46: 5
B47: Gopher control | D47: 1 | F47: acre | H47: =+gophercontrol -> 2 | J47: 2
B48: Tarping | D48: =+$D$13 -> 2.5 | F48: acre | H48: =+tarping -> 4 | J48: 10
B49: Storage Facility & Equip. Repairs | J49: 0
B50: Other Labor | J50: 0
B54: Overhead1 | J54: =+($J$17+$J$23+$J$28+$J$33+$J$44)*0.05 -> 2.845
B55: Operating Interest2 | J55: =+($J$17+$J$23+$J$28+$J$33+$J$44)*0.07*0.5 -> 1.9915
B57: Total Operating Costs | J57: =SUM(J17:J55)-(J17+J23+J28+J33+J44) -> 133.9484286
B58: Operating Costs per Unit | J58: =J57/D13 -> 53.57937143
B60: Net Returns Above Operating Expenses | J60: =J13-J57 -> 366.0515714
B62: Ownership Costs:
B63: Machinery depreciation | J63: =+'T11-15 Machinery Costs'!C75 -> 18.4205
B64: Machinery interest | J64: =+'T11-15 Machinery Costs'!D75 -> 12.208
B65: Machinery insurance, taxes housing, licenses | J65: =+'T11-15 Machinery Costs'!E75 -> 3.119
B66: Land Cost | D66: 0.04 | F66: percent | H66: =landvalue2 -> 2000 | J66: =+H66*D66 -> 80
B67: Land Taxes | D67: 1 | F67: acre | H67: =landtax -> 5.5 | J67: =D67*H67 -> 5.5
B69: Total Ownership Costs | J69: =SUM(J62:J67) -> 119.2475
B70: Ownership Costs per Unit | J70: =J69/D13 -> 47.699
B72: Total Costs per Acre | J72: =J57+J69 -> 253.1959286
B73: Total Cost per Unit | J73: =J72/D13 -> 101.2783714
B75: Returns to Risk | J75: =J13-J72 -> 246.8040714
B76: 1Covers legal, accounting, and utility fees. Calculated as 5% of operating expenses.
B77: 2Calculated at 7% interest on operating capital for 6 months.
B81: Breakeven Analysis: | D81: - | F81: Base | H81: +
D82: 0.1 | H82: 0.1
F83: Yield
B84: Price | D84: =F84*(1-D82) -> 2.25 | F84: =D13 -> 2.5 | H84: =F84*1.05 -> 2.625
B86: Operating Cost Breakeven | D86: =$J$57/D84 -> 59.53263492 | F86: =$J$57/F84 -> 53.57937143 | H86: =$J$57/H84 -> 51.02797279
B88: Ownership Cost Breakeven | D88: =$J$69/D84 -> 52.99888889 | F88: =$J$69/F84 -> 47.699 | H88: =$J$69/H84 -> 45.42761905
B90: Total Cost Breakeven | D90: =$J$72/D84 -> 112.5315238 | F90: =$J$72/F84 -> 101.2783714 | H90: =$J$72/H84 -> 96.45559184
F93: Price
B94: Yield | D94: =F94*(1-D82) -> 180 | F94: =H13 -> 200 | H94: =F94*(1+H82) -> 220
B96: Operating Cost Breakeven | D96: =$J$57/D94 -> 0.7441579365 | F96: =$J$57/F94 -> 0.6697421429 | H96: =$J$57/H94 -> 0.6088564935
B98: Ownership Cost Breakeven | D98: =$J$69/D94 -> 0.6624861111 | F98: =$J$69/F94 -> 0.5962375 | H98: =$J$69/H94 -> 0.5420340909
B100: Total Cost Breakeven | D100: =$J$72/D94 -> 1.406644048 | F100: =$J$72/F94 -> 1.265979643 | H100: =$J$72/H94 -> 1.150890584

Sheet T7 Calendar for 1 cutting
B1: Back to Summary | D1: Input Costs | E1: Alfalfa Production, 1 cutting | G1: Machine Costs | I1: Machine Complement
B4: Table 7. Schedule of Operations for Producing Organic Dryland Alfalfa, 1 Cutting
B5: Month | C5: Operation | D5: Tooling
B6: March | C6: Harrow 2X | D6: 300HP-WT, 53' Rotary Harrow, 2 perpendicular passes
B8: July | C8: Swath Forage | D8: 18' Swather
B10: July | C10: Rake Forage | D10: 300HP-WT, Side Delivery Rake
B12: July | C12: Bale Forage | D12: 300HP-WT, 1500 Round Baler
B14: July | C14: Haul & Stack Bales | D14: 300HP-WT, Bale Spear
B16: July | C16: Mow Weeds | D16: 300HP-WT, 20' Flail Shredder
B18: September | C18: Mow Weeds | D18: 300HP-WT, 20' Flail Shredder
B20: September | C20: Soil test
B22: September | C22: Topdress with manure or organic fertilizer if necessary.

Sheet T8 Alf Prod, 1 cutting
B1: Back to Summary | D1: Input Costs | F1: Calendar | H1: Machine Costs | J1: Machine Complement
B2: Legend: Follow directions below to preserve equations in this spreadsheet.
B3: Yellow cells: Data are from Summary page (yellow tab).
B4: Orange cells: Revise data here to reflect your situation.
B5: Green cells: Data are from Input Costs page (green tab).
B6: Blue cells: Data are from the Machinery page (blue tab).
B7: Please change yield, price, and length of stand assumptions as necessary to reflect your situation.
B8: Table 8. Production Costs for Dryland Organic Alfalfa Production, <15" Annual Rainfall (1 cutting)
D9: Quantity | H9: Price or | J9: Value or
B10: Item | D10: Per Acre | F10: Unit | H10: Cost/Unit | J10: Cost/Acre
B12: Gross Returns
B13: Alfalfa | D13: =LowRainfallYd -> 2.5 | F13: ton | H13: ='T1 Summary'!H16 -> 200 | J13: =D13*H13 -> 500
B15: Operating Inputs
B17: Seed: | J17: =SUM(J18:J19) -> 0
B18: Alfalfa Seed | D18: 0 | F18: lb | H18: =+AlfalfaSeed -> 3 | J18: =D18*H18 -> 0
B21: Fertilizer: | J21: =SUM(J22:J24) -> 78.125
B22: Manure or organic fertilizer | D22: =LowRainfallYd*1.25 -> 3.125 | F22: ton | H22: =+Manure -> 25 | J22: =D22*H22 -> 78.125
J23: =D23*H23 -> 0
J24: =D24*H24 -> 0
B26: Pesticides: | J26: =SUM(J27:J28) -> 0
J27: =D27*H27 -> 0
J28: =D28*H28 -> 0
B31: Custom & Consultants: | J31: =SUM(J32:J34) -> 0.3
B32: Soil Test | D32: 1 | F32: acre | H32: 0.3 | J32: =D32*H32 -> 0.3
B36: Machinery Costs:
B37: Fuel | D37: =+'T11-15 Machinery Costs'!I93 -> 6.040428571 | F37: gal | H37: =+Diesel -> 2.5 | J37: =D37*H37 -> 15.10107143
B38: Lubricants | D38: 1 | F38: acre | H38: =+'T11-15 Machinery Costs'!J93 -> 3.196 | J38: =D38*H38 -> 3.196
B39: Machinery Repairs | D39: 1 | F39: acre | H39: =+'T11-15 Machinery Costs'!G93 -> 6.62 | J39: =D39*H39 -> 6.62
B40: Machinery Labor | D40: =+'T11-15 Machinery Costs'!M93 -> 1.092 | F40: acre | H40: =+HourlyMachineLabor -> 20 | J40: =D40*H40 -> 21.84
B42: Other: | J42: =SUM(J44:J48) -> 17
B43: Twine | D43: =+$D$13 -> 2.5 | F43: ton | H43: =twine -> 2 | J43: =D43*H43 -> 5
B44: Crop insurance | D44: =+$D$13 -> 2.5 | F44: ton | H44: =+cropinsurance -> 2 | J44: 5
B45: Gopher control | D45: 1 | F45: acre | H45: =+gophercontrol -> 2 | J45: 2
B46: Tarping | D46: =+$D$13 -> 2.5 | F46: acre | H46: =+tarping -> 4 | J46: 10
B47: Storage Facility & Equip. Repairs | J47: 0
B48: Other Labor | J48: 0
B52: Overhead1 | J52: =+($J$17+$J$21+$J$26+$J$31+$J$42)*0.05 -> 4.77125
B53: Operating Interest2 | J53: =+($J$17+$J$21+$J$26+$J$31+$J$42)*0.07*0.5 -> 3.339875
B55: Total Operating Costs | J55: =SUM(J17:J53)-(J17+J21+J26+J31+J42) -> 155.2931964
B56: Operating Costs per Unit | J56: =J55/D13 -> 62.11727857
B58: Net Returns Above Operating Expenses | J58: =J13-J55 -> 344.7068036
B60: Ownership Costs:
B61: Machinery depreciation | J61: =+'T11-15 Machinery Costs'!C93 -> 12.0745
B62: Machinery interest | J62: =+'T11-15 Machinery Costs'!D93 -> 8.067
B63: Machinery insurance, taxes housing, licenses | J63: =+'T11-15 Machinery Costs'!E93 -> 2.257
B64: Amortized Establishment Cost | J64: =IF('T4 Alfalfa Est <15" ppt'!$J$75<0,PMT(0.07,stand1cutting,+'T4 Alfalfa Est <15" ppt'!$J$75),0) -> 0
B65: Land Cost | D65: 0.04 | F65: percent | H65: =landvalue1 -> 1500 | J65: =+H65*D65 -> 60
B66: Land Taxes | D66: 1 | F66: acre | H66: =landtax -> 5.5 | J66: =D66*H66 -> 5.5
B68: Total Ownership Costs | J68: =SUM(J60:J66) -> 87.8985
B69: Ownership Costs per Unit | J69: =J68/D13 -> 35.1594
B71: Total Costs per Acre | J71: =J55+J68 -> 243.1916964
B72: Total Cost per Unit | J72: =J71/D13 -> 97.27667857
B74: Returns to Risk | J74: =J13-J71 -> 256.8083036
B75: 1Covers legal, accounting, and utility fees. Calculated as 5% of operating expenses.
B76: 2Calculated at 7% interest on operating capital for 6 months.
B80: Breakeven Analysis: | D80: - | F80: Base | H80: +
D81: 0.1 | F81: Yield | H81: 0.1
B83: Price | D83: =F83*(1-D81) -> 2.25 | F83: =D13 -> 2.5 | H83: =F83*1.05 -> 2.625
B85: Operating Cost Breakeven | D85: =$J$55/D83 -> 69.01919841 | F85: =$J$55/F83 -> 62.11727857 | H85: =$J$55/H83 -> 59.15931293
B87: Ownership Cost Breakeven | D87: =$J$68/D83 -> 39.066 | F87: =$J$68/F83 -> 35.1594 | H87: =$J$68/H83 -> 33.48514286
B89: Total Cost Breakeven | D89: =$J$71/D83 -> 108.0851984 | F89: =$J$71/F83 -> 97.27667857 | H89: =$J$71/H83 -> 92.64445578
D91: - | F91: Base | H91: +
D92: 0.1 | F92: Price | H92: 0.1
B94: Yield | D94: =F94*(1-D81) -> 180 | F94: =H13 -> 200 | H94: =F94*(1+H81) -> 220
B96: Operating Cost Breakeven | D96: =$J$55/D94 -> 0.8627399802 | F96: =$J$55/F94 -> 0.7764659821 | H96: =$J$55/H94 -> 0.7058781656
B98: Ownership Cost Breakeven | D98: =$J$68/D94 -> 0.488325 | F98: =$J$68/F94 -> 0.4394925 | H98: =$J$68/H94 -> 0.3995386364
B100: Total Cost Breakeven | D100: =$J$71/D94 -> 1.35106498 | F100: =$J$71/F94 -> 1.215958482 | H100: =$J$71/H94 -> 1.105416802

Sheet T9 Calendar for 2 cuttings
B1: Back to Summary | C1: Input Costs | D1: Alfalfa Production, 2 cuttings | G1: Machine Costs | I1: Machine Complement
B3: Table 9. Schedule of Operations for Producing Dryland Organic Alfalfa, 2 cuttings
B4: Month | C4: Operation | D4: Tooling
B5: March | C5: Harrow 2X | D5: 300HP-WT, 53' Rotary Harrow, 2 perpendicular passes
B7: June | C7: Swath Forage | D7: 18' Swather
B9: June | C9: Rake Forage | D9: 300HP-WT, Side Delivery Rake
B11: June | C11: Bale Forage | D11: 300HP-WT, 1500-lb Round Baler
B13: June | C13: Haul & Stack Bales | D13: 300HP-WT, Bale Spear
B15: August | C15: Swath Forage | D15: 18' Swather
B17: August | C17: Rake Forage | D17: 300HP-WT, Side Delivery Rake
B19: August | C19: Bale Forage | D19: 300HP-WT, 1500-lb Round Baler
B21: August | C21: Haul & Stack Bales | D21: 300HP-WT, Bale Spear
B23: September | C23: Mow Weeds | D23: 300HP-WT, 20' Flail Shredder
B25: September | C25: Soil test
B27: September | C27: Top-dress with manure or organic fertilizer if necessary.

Sheet T10 Alf Prod, 2 cuttings
B1: Back to Summary | D1: Input Costs | F1: Calendar | H1: Machine Costs | J1: Machine Complement
B2: Legend: Follow directions below to preserve equations in this spreadsheet.
B3: Yellow cells: Data are from Summary page (yellow tab).
B4: Orange cells: Revise data here to reflect your situation.
B5: Green cells: Data are from Input Costs page (green tab).
B6: Blue cells: Data are from the Machinery page (blue tab).
B7: Please change yield, price, and length of stand assumptions as necessary to reflect your situation.
B8: Table 10. Production Costs for Dryland Organic Alfalfa Production, > 15" Annual Rainfall (2 cuttings)
D9: Quantity | H9: Price or | J9: Value or
B10: Item | D10: Per Acre | F10: Unit | H10: Cost/Unit | J10: Cost/Acre
B12: Gross Returns
B13: Forage | D13: =HighRainfallYd -> 3.5 | F13: ton | H13: =+'T1 Summary'!H21 -> 200 | J13: =D13*H13 -> 700
B15: Operating Inputs
B17: Seed: | J17: =SUM(J18:J18) -> 0
B18: Alfalfa Seed | D18: 0 | F18: lb | H18: =+AlfalfaSeed -> 3 | J18: =D18*H18 -> 0
B20: Fertilizer: | J20: =SUM(J22:J23) -> 0
B21: Topdress manure or organic | D21: =HighRainfallYd*1.25 -> 4.375 | F21: acre | H21: =Manure -> 25 | J21: =D21*H21 -> 109.375
B22: fertilizer if necessary | J22: =D22*H22 -> 0
J23: =D23*H23 -> 0
B25: Pesticides: | J25: =SUM(J26:J27) -> 0
J26: =D26*H26 -> 0
J27: =D27*H27 -> 0
B29: Custom & Consultants: | J29: =SUM(J30:J31) -> 0.3
B30: Soil Test | D30: 1 | F30: acre | H30: 0.3 | J30: =D30*H30 -> 0.3
B34: Machinery Costs: | J34: =SUM(J35:J38) -> 70.71278571
B35: Fuel | D35: =+'T11-15 Machinery Costs'!I115 -> 9.494714286 | F35: gal | H35: =+Diesel -> 2.5 | J35: =D35*H35 -> 23.73678571
B36: Lubricants | D36: 1 | F36: acre | H36: =+'T11-15 Machinery Costs'!J115 -> 5.016 | J36: =D36*H36 -> 5.016
B37: Machinery Repairs | D37: 1 | F37: acre | H37: =+'T11-15 Machinery Costs'!G115 -> 10.28 | J37: =D37*H37 -> 10.28
B38: Machinery Labor | D38: =+'T11-15 Machinery Costs'!M115 -> 1.584 | F38: acre | H38: =+HourlyMachineLabor -> 20 | J38: =D38*H38 -> 31.68
B40: Other: | J40: =SUM(J42:J46) -> 23
B41: Twine | D41: =+$D$13 -> 3.5 | F41: ton | H41: =twine -> 2 | J41: =D41*H41 -> 7
B42: Crop insurance | D42: =+$D$13 -> 3.5 | F42: ton | H42: =+cropinsurance -> 2 | J42: 7
B43: Gopher control | D43: 1 | F43: acre | H43: =+gophercontrol -> 2 | J43: 2
B44: Tarping | D44: =+$D$13 -> 3.5 | F44: acre | H44: =+tarping -> 4 | J44: 14
B45: Storage Facility & Equip. Repairs | J45: 0
B46: Other Labor | J46: 0
B48: Overhead1 | J48: =(+$J$29+$J$25+$J$40+$J$34)*0.05 -> 4.700639286
B49: Operating Interest2 | J49: =+(J17+J20+J25+J29+J40)*0.07*0.5 -> 0.8155
B51: Total Operating Costs | J51: =SUM(J17:J49)-(J17+J20+J25+J29+J40) -> 286.6167107
B52: Operating Costs per Unit | J52: =J51/D13 -> 81.89048878
B54: Net Returns Above Operating Expenses | J54: =J13-J51 -> 413.3832893
B56: Ownership Costs
B57: Machinery depreciation | J57: ='T11-15 Machinery Costs'!C115 -> 18.6345
B58: Machinery interest | J58: ='T11-15 Machinery Costs'!D115 -> 12.277
B59: Machinery insurance, taxes housing, licence | J59: ='T11-15 Machinery Costs'!E115 -> 3.387
B60: Amortized Establishment Cost | J60: =IF('T6 Alfalfa Est >15" ppt'!$J$75<0,-PMT(0.07,stand2cuttings,+'T6 Alfalfa Est >15" ppt'!$J$75),0) -> 0
B61: Land Cost | D61: 0.04 | F61: percent | H61: =landvalue2 -> 2000 | J61: =+H61*D61 -> 80
B62: Land Taxes | D62: 1 | F62: acre | H62: =landtax -> 5.5 | J62: =D62*H62 -> 5.5
B64: Total Ownership Costs | J64: =SUM(J56:J61) -> 114.2985
B65: Ownership Costs per Unit | J65: =J64/D13 -> 32.65671429
B67: Total Costs per Acre | J67: =J51+J64 -> 400.9152107
B68: Total Cost per Unit | J68: =J67/D13 -> 114.5472031
B70: Returns to Risk | J70: =J13-J67 -> 299.0847893
B71: 1Covers legal, accounting, and utility fees. Calculated as 5% of operating expenses.
B72: 2Calculated at 7% interest on operating capital for 6 months.
B76: Breakeven Analysis: | D76: - | F76: Base | H76: +
D77: 0.1 | H77: 0.1
F78: Yield
B79: Price | D79: =F79*(1-D77) -> 3.15 | F79: =D13 -> 3.5 | H79: =F79*1.05 -> 3.675
B81: Operating Cost Breakeven | D81: =$J$51/D79 -> 90.98943197 | F81: =$J$51/F79 -> 81.89048878 | H81: =$J$51/H79 -> 77.99094169
B83: Ownership Cost Breakeven | D83: =$J$64/D79 -> 36.2852381 | F83: =$J$64/F79 -> 32.65671429 | H83: =$J$64/H79 -> 31.10163265
B85: Total Cost Breakeven | D85: =$J$67/D79 -> 127.2746701 | F85: =$J$67/F79 -> 114.5472031 | H85: =$J$67/H79 -> 109.0925743
F88: Price
B89: Yield | D89: =F89*(1-D77) -> 180 | F89: =H13 -> 200 | H89: =F89*(1+H77) -> 220
B91: Operating Cost Breakeven | D91: =$J$51/D89 -> 1.59231506 | F91: =$J$51/F89 -> 1.433083554 | H91: =$J$51/H89 -> 1.302803231
B93: Ownership Cost Breakeven | D93: =$J$64/D89 -> 0.6349916667 | F93: =$J$64/F89 -> 0.5714925 | H93: =$J$64/H89 -> 0.5195386364
B95: Total Cost Breakeven | D95: =$J$67/D89 -> 2.227306726 | F95: =$J$67/F89 -> 2.004576054 | H95: =$J$67/H89 -> 1.822341867

Sheet T11-15 Machinery Costs
B1: Back to Summary | D1: Back to Contents
B2: Table 11. Per Acre Machinery Costs by Type
K3: Total
B4: Machine/ | F4: Total | K4: Variable | N4: Total
B5: Type of Operation | C5: Depreciation | D5: Interest | E5: THI&L1 | F5: Fixed Costs | G5: Repairs | H5: Fuel | I5: Fuel | J5: Lube | K5: Costs | L5: Labor | M5: Labor | N5: Costs
C6: ($/acre) | D6: ($/acre) | E6: ($/acre) | F6: ($/acre) | G6: ($/acre) | H6: ($/acre) | I6: (gal/acre) | J6: ($/acre) | K6: ($/acre) | L6: ($/acre) | M6: (hr/acre) | N6: ($/acre)
B8: 23' Chisel, 300HP-CH | C8: 1.4 | D8: 1.03 | E8: 0.13 | F8: 2.56 | G8: 0.82 | H8: 2.53 | I8: 0.7228571429 | J8: 0.38 | K8: =+J8+H8+G8 -> 3.73 | L8: 1.86 | M8: 0.093 | N8: =+L8+K8+F8 -> 8.15
B9: 35' Tandem Disk, 300HP-CH | C9: 1.77 | D9: 1 | E9: 0.12 | F9: =SUM(C9:E9) -> 2.89 | G9: 0.89 | H9: 1.69 | I9: 0.4828571429 | J9: 0.25 | K9: =+J9+H9+G9 -> 2.83 | L9: 1.38 | M9: 0.069 | N9: =+L9+K9+F9 -> 7.1
B10: 53' Rotary Harrow, 300HP-CH | C10: 0.92 | D10: 0.65 | E10: 0.08 | F10: 1.65 | G10: 0.35 | H10: 1.24 | I10: 0.3542857143 | J10: 0.19 | K10: 1.78 | L10: 1.01 | M10: 0.0505 | N10: =+L10+K10+F10 -> 4.44
B11: Side Delivery Rake, 300HP-CH | C11: 1.11 | D11: 0.81 | E11: 0.12 | F11: 2.04 | G11: 0.57 | H11: 2.32 | I11: 0.6628571429 | J11: 0.35 | K11: 3.24 | L11: 1.89 | M11: 0.0945 | N11: 7.17
B12: 40' Packer, 300HP-CH | C12: 0.51 | D12: 0.42 | E12: 0.06 | F12: =SUM(C12:E12) -> 0.99 | G12: 0.23 | H12: 1.58 | I12: 0.4514285714 | J12: 0.24 | K12: 2.05 | L12: 0.97 | M12: 0.0485 | N12: =+L12+K12+F12 -> 4.01
B13: 30' Disk Drill, 300HP-CH | C13: 1.76 | D13: 1.14 | E13: 0.36 | F13: 3.26 | G13: 1.58 | H13: 2.98 | I13: 0.8514285714 | J13: 0.45 | K13: 5.01 | L13: 1.83 | M13: 0.0915 | N13: 10.1
B14: 20' Flail Shredder, 300HP-CH | C14: 1.33 | D14: 0.88 | E14: 0.21 | F14: 2.42 | G14: 0.72 | H14: 2.25 | I14: 0.6428571429 | J14: 0.34 | K14: 3.31 | L14: 1.6 | M14: 0.08 | N14: 7.33
B15: 18' Swather | C15: 2.48 | D15: 1.27 | E15: 0.58 | F15: 4.33 | G15: 1.15 | H15: 1.65 | I15: 0.4714285714 | J15: 0.25 | K15: 3.05 | L15: 2.75 | M15: 0.1375 | N15: 10.13
B16: 1500-lb Round Baler, 300HP-CH | C16: 1.43 | D16: 0.89 | E16: 0.22 | F16: =SUM(C16:E16) -> 2.54 | G16: 1.19 | H16: 2.21 | I16: 0.6314285714 | J16: 0.33 | K16: 3.73 | L16: 1.24 | M16: 0.062 | N16: =+L16+K16+F16 -> 7.51
B17: Bale Spear, 300HP-WT | C17: 1.54 | D17: 1.24 | E17: 0.21 | F17: 2.99 | G17: 0.75 | H17: 5.91 | I17: 1.688571429 | J17: 0.89 | K17: 7.55 | L17: 3.96 | M17: 0.198 | N17: 14.5
B18: 0.75-Ton 4WD Pickup | C18: 0.73 | D18: 0.52 | E18: 0.5 | F18: 1.74 | G18: 0.75 | H18: 1.5 | I18: 0.4285714286 | J18: 0.23 | K18: 2.48 | L18: 4.8 | M18: 0.24 | N18: 9.02
B19: 4WD-ATV | C19: 0.093 | D19: 0.061 | E19: 0.01 | F19: =SUM(C19:E19) -> 0.164 | G19: 0.02 | H19: 0.144 | I19: 0.04114285714 | J19: 0.022 | K19: 0.186 | L19: 0.88 | M19: 0.044 | N19: =+L19+K19+F19 -> 1.23
B20: 50HP-WT with bucket | C20: 0.1915 | D20: 0.216 | E20: 0.037 | F20: =SUM(C20:E20) -> 0.4445 | G20: 0.05 | H20: 0.4275 | I20: 0.1221428571 | J20: 0.064 | K20: 0.5415 | L20: 1.1 | M20: 0.055 | N20: =+L20+K20+F20 -> 2.086
B21: 1Taxes, housing, insurance, and licensing
B23: Table 12. Per Acre Machinery Costs for Establishing Dryland Organic Alfalfa, <15" Annual Rainfall (1 cutting)
K24: Total
F25: Total | K25: Variable | N25: Total
B26: Type of Machine | C26: Depreciation | D26: Interest | E26: THI&L1 | F26: Fixed Costs | G26: Repairs | H26: Fuel | I26: Fuel | J26: Lube | K26: Costs | L26: Labor | M26: Labor | N26: Costs
C27: ($/acre) | D27: ($/acre) | E27: ($/acre) | F27: ($/acre) | G27: ($/acre) | H27: ($/acre) | I27: (gal/acre) | J27: ($/acre) | K27: ($/acre) | L27: ($/acre) | M27: (hr/acre) | N27: ($/acre)
B28: 23' Chisel, 300HP-CH | C28: 1.4 | D28: 1.03 | E28: 0.13 | F28: 2.56 | G28: 0.82 | H28: 2.53 | I28: 0.7228571429 | J28: 0.38 | K28: 3.73 | L28: 1.86 | M28: 0.093 | N28: 8.15
B29: 35' Tandem Disk, 300HP-CH | C29: 1.77 | D29: 1 | E29: 0.12 | F29: =SUM(C29:E29) -> 2.89 | G29: 0.89 | H29: 1.69 | I29: 0.4828571429 | J29: 0.25 | K29: =SUM(G29:J29) -> 3.312857143 | L29: 1.38 | M29: 0.069 | N29: =+L29+K29+F29 -> 7.582857143
B30: =HARROW -> 53' Rotary Harrow, 300HP-CH | C30: 0.92 | D30: 0.65 | E30: 0.08 | F30: 1.65 | G30: 0.35 | H30: 1.24 | I30: 0.3542857143 | J30: =HARROW -> 0.19 | K30: =HARROW -> 1.78 | L30: =HARROW -> 1.01 | M30: 0.0505 | N30: =HARROW -> 4.44
B31: 30' Disk Drill, 300HP-CH | C31: 1.76 | D31: 1.14 | E31: 0.36 | F31: =SUM(C31:E31) -> 3.26 | G31: 1.58 | H31: 2.98 | I31: 0.8514285714 | J31: 0.45 | K31: =SUM(G31:J31) -> 5.861428571 | L31: 1.83 | M31: 0.0915 | N31: =+L31+K31+F31 -> 10.95142857
B32: 40' Packer, 300HP-CH | C32: 0.51 | D32: 0.42 | E32: 0.06 | F32: =SUM(C32:E32) -> 0.99 | G32: 0.23 | H32: 1.58 | I32: 0.4514285714 | J32: 0.24 | K32: =SUM(G32:J32) -> 2.501428571 | L32: 0.97 | M32: 0.0485 | N32: =+L32+K32+F32 -> 4.461428571
B33: For re-seeding (20% of the time):
B34: 35' Tandem Disk, 300HP-CH | C34: =0.2*C29 -> 0.354 | D34: =0.2*D29 -> 0.2 | E34: 0.024 | F34: 0.578 | G34: 0.178 | H34: 0.338 | I34: 0.09657142857 | J34: 0.05 | K34: 0.6625714286 | L34: 0.276 | M34: 0.0138 | N34: 1.516571429
B35: =HARROW -> 53' Rotary Harrow, 300HP-CH | C35: =0.2*C30 -> 0.184 | D35: 0.13 | E35: 0.016 | F35: 0.33 | G35: 0.07 | H35: 0.248 | I35: 0.07085714286 | J35: 0.038 | K35: 0.356 | L35: 0.202 | M35: 0.0101 | N35: 0.888
B36: 30' Disk Drill, 300HP-CH | C36: 0.352 | D36: 0.228 | E36: 0.072 | F36: 0.652 | G36: 0.316 | H36: 0.596 | I36: 0.1702857143 | J36: 0.09 | K36: 1.172285714 | L36: 0.366 | M36: 0.0183 | N36: 2.190285714
B37: 40' Packer, 300HP-CH | C37: 0.102 | D37: 0.084 | E37: 0.012 | F37: 0.198 | G37: 0.046 | H37: 0.316 | I37: 0.09028571429 | J37: 0.048 | K37: 0.5002857143 | L37: 0.194 | M37: 0.0097 | N37: 0.8922857143
B38: 20' Flail Shredder, 300HP-CH | C38: =SHREDDER -> 1.33 | D38: 0.88 | E38: 0.21 | F38: 2.42 | G38: 0.72 | H38: 2.25 | I38: 0.6428571429 | J38: =SHREDDER -> 0.34 | K38: =SHREDDER -> 3.31 | L38: =SHREDDER -> 1.6 | M38: 0.08 | N38: =SHREDDER -> 7.33
B39: =SWATHER -> 18' Swather | C39: 2.48 | D39: 1.27 | E39: 0.58 | F39: 4.33 | G39: 1.15 | H39: 1.65 | I39: 0.4714285714 | J39: =SWATHER -> 0.25 | K39: =SWATHER -> 3.05 | L39: =SWATHER -> 2.75 | M39: 0.1375 | N39: =SWATHER -> 10.13
B40: Side Delivery Rake, 300HP-CH | C40: =RAKE -> 1.11 | D40: 0.81 | E40: 0.12 | F40: 2.04 | G40: 0.57 | H40: 2.32 | I40: 0.6628571429 | J40: =RAKE -> 0.35 | K40: =RAKE -> 3.24 | L40: =RAKE -> 1.89 | M40: 0.0945 | N40: =RAKE -> 7.17
B41: 1500-lb Round Baler, 300HP-CH | C41: =baler -> 1.43 | D41: 0.89 | E41: 0.22 | F41: 2.54 | G41: 1.19 | H41: 2.21 | I41: 0.6314285714 | J41: =baler -> 0.33 | K41: =baler -> 3.73 | L41: =baler -> 1.24 | M41: 0.062 | N41: =baler -> 7.51
B42: Bale Spear, 300HP-WT | C42: =SPEAR -> 1.54 | D42: 1.24 | E42: 0.21 | F42: 2.99 | G42: 0.75 | H42: 5.91 | I42: 1.688571429 | J42: =SPEAR -> 0.89 | K42: =SPEAR -> 7.55 | L42: =SPEAR -> 3.96 | M42: 0.198 | N42: =SPEAR -> 14.5
B43: 20' Flail Shredder, 300HP-CH | C43: =SHREDDER -> 1.33 | D43: 0.88 | E43: 0.21 | F43: 2.42 | G43: 0.72 | H43: 2.25 | I43: 0.6428571429 | J43: =SHREDDER -> 0.34 | K43: 3.31 | L43: 1.6 | M43: 0.08 | N43: =SHREDDER -> 7.33
B44: 20' Flail Shredder, 300HP-CH | C44: 1.33 | D44: 0.88 | E44: 0.21 | F44: 2.42 | G44: 0.72 | H44: 2.25 | I44: 0.6428571429 | J44: 0.34 | K44: 3.31 | L44: 1.6 | M44: 0.08 | N44: =SHREDDER -> 7.33
B45: =PU -> 0.75-Ton 4WD Pickup | C45: 0.73 | D45: 0.52 | E45: 0.5 | F45: 1.74 | G45: 0.75 | H45: 1.5 | I45: 0.4285714286 | J45: =PU -> 0.23 | K45: =PU -> 2.48 | L45: =PU -> 4.8 | M45: 0.24 | N45: =PU -> 9.02
B46: =ATV -> 4WD-ATV | C46: 0.093 | D46: 0.061 | E46: 0.01 | F46: 0.164 | G46: 0.02 | H46: 0.144 | I46: 0.04114285714 | J46: =ATV -> 0.022 | K46: =ATV -> 0.186 | L46: =ATV -> 0.88 | M46: 0.044 | N46: =ATV -> 1.23
B47: =BUCKET -> 50HP-WT with bucket | C47: 0.1915 | D47: 0.216 | E47: 0.037 | F47: 0.4445 | G47: 0.05 | H47: 0.4275 | I47: 0.1221428571 | J47: =BUCKET -> 0.064 | K47: =BUCKET -> 0.5415 | L47: =BUCKET -> 1.1 | M47: 0.055 | N47: =BUCKET -> 2.086
B48: Total | C48: =SUM(C28:C47) -> 18.9165 | D48: 12.529 | E48: 3.181 | F48: 34.6165 | G48: 11.12 | H48: 32.4295 | I48: 9.265571429 | J48: 4.892 | K48: 50.58435714 | L48: 29.508 | M48: 1.4754 | N48: 114.7088571
B49: 1Taxes, housing, insurance, and licensing
B50: Table 13. Per Acre Machinery Costs for Establishing Dryland Organic Alfalfa, >15" Annual Rainfall (1 cutting)
K51: Total
F52: Total | K52: Variable | N52: Total
B53: Type of Machine | C53: Depreciation | D53: Interest | E53: THI&L1 | F53: Fixed Costs | G53: Repairs | H53: Fuel | I53: Fuel | J53: Lube | K53: Costs | L53: Labor | M53: Labor | N53: Costs
C54: ($/acre) | D54: ($/acre) | E54: ($/acre) | F54: ($/acre) | G54: ($/acre) | H54: ($/acre) | I54: (gal/acre) | J54: ($/acre) | K54: ($/acre) | L54: ($/acre) | M54: (hr/acre) | N54: ($/acre)
B55: 23' Chisel, 300HP-CH | C55: 1.4 | D55: 1.03 | E55: 0.13 | F55: 2.56 | G55: 0.82 | H55: 2.53 | I55: 0.7228571429 | J55: 0.38 | K55: 3.73 | L55: 1.86 | M55: 0.093 | N55: 8.15
B56: 35' Tandem Disk, 300HP-CH | C56: 1.77 | D56: 1 | E56: 0.12 | F56: =SUM(C56:E56) -> 2.89 | G56: 0.89 | H56: 1.69 | I56: 0.4828571429 | J56: 0.25 | K56: =SUM(G56:J56) -> 3.312857143 | L56: 1.38 | M56: 0.069 | N56: =+L56+K56+F56 -> 7.582857143
B57: =HARROW -> 53' Rotary Harrow, 300HP-CH | C57: 0.92 | D57: 0.65 | E57: 0.08 | F57: 1.65 | G57: 0.35 | H57: 1.24 | I57: 0.3542857143 | J57: =HARROW -> 0.19 | K57: =HARROW -> 1.78 | L57: =HARROW -> 1.01 | M57: 0.0505 | N57: =HARROW -> 4.44
B58: 30' Disk Drill, 300HP-CH | C58: 1.76 | D58: 1.14 | E58: 0.36 | F58: =SUM(C58:E58) -> 3.26 | G58: 1.58 | H58: 2.98 | I58: 0.8514285714 | J58: 0.45 | K58: =SUM(G58:J58) -> 5.861428571 | L58: 1.83 | M58: 0.0915 | N58: =+L58+K58+F58 -> 10.95142857
B59: 40' Packer, 300HP-CH | C59: 0.51 | D59: 0.42 | E59: 0.06 | F59: =SUM(C59:E59) -> 0.99 | G59: 0.23 | H59: 1.58 | I59: 0.4514285714 | J59: 0.24 | K59: =SUM(G59:J59) -> 2.501428571 | L59: 0.97 | M59: 0.0485 | N59: =+L59+K59+F59 -> 4.461428571
B60: For re-seeding (10% of the time):
B61: 35' Tandem Disk, 300HP-CH | C61: =0.1*C56 -> 0.177 | D61: =0.1*D56 -> 0.1 | E61: 0.012 | F61: 0.289 | G61: 0.089 | H61: 0.169 | I61: 0.04828571429 | J61: 0.025 | K61: 0.3312857143 | L61: 0.138 | M61: 0.0069 | N61: 0.7582857143
B62: =HARROW -> 53' Rotary Harrow, 300HP-CH | C62: =0.1*C57 -> 0.092 | D62: 0.065 | E62: 0.008 | F62: 0.165 | G62: 0.035 | H62: 0.124 | I62: 0.03542857143 | J62: 0.019 | K62: 0.178 | L62: 0.101 | M62: 0.00505 | N62: 0.444
B63: 30' Disk Drill, 300HP-CH | C63: 0.176 | D63: 0.114 | E63: 0.036 | F63: 0.326 | G63: 0.158 | H63: 0.298 | I63: 0.08514285714 | J63: 0.045 | K63: 0.5861428571 | L63: 0.183 | M63: 0.00915 | N63: 1.095142857
B64: 40' Packer, 300HP-CH | C64: 0.051 | D64: 0.042 | E64: 0.006 | F64: 0.099 | G64: 0.023 | H64: 0.158 | I64: 0.04514285714 | J64: 0.024 | K64: 0.2501428571 | L64: 0.097 | M64: 0.00485 | N64: 0.4461428571
B65: 20' Flail Shredder, 300HP-CH | C65: =SHREDDER -> 1.33 | D65: 0.88 | E65: 0.21 | F65: 2.42 | G65: 0.72 | H65: 2.25 | I65: 0.6428571429 | J65: =SHREDDER -> 0.34 | K65: =SHREDDER -> 3.31 | L65: =SHREDDER -> 1.6 | M65: 0.08 | N65: =SHREDDER -> 7.33
B66: =SWATHER -> 18' Swather | C66: 2.48 | D66: 1.27 | E66: 0.58 | F66: 4.33 | G66: 1.15 | H66: 1.65 | I66: 0.4714285714 | J66: =SWATHER -> 0.25 | K66: =SWATHER -> 3.05 | L66: =SWATHER -> 2.75 | M66: 0.1375 | N66: =SWATHER -> 10.13
B67: Side Delivery Rake, 300HP-CH | C67: =RAKE -> 1.11 | D67: 0.81 | E67: 0.12 | F67: 2.04 | G67: 0.57 | H67: 2.32 | I67: 0.6628571429 | J67: =RAKE -> 0.35 | K67: =RAKE -> 3.24 | L67: =RAKE -> 1.89 | M67: 0.0945 | N67: =RAKE -> 7.17
B68: 1500-lb Round Baler, 300HP-CH | C68: =baler -> 1.43 | D68: 0.89 | E68: 0.22 | F68: 2.54 | G68: 1.19 | H68: 2.21 | I68: 0.6314285714 | J68: =baler -> 0.33 | K68: =baler -> 3.73 | L68: =baler -> 1.24 | M68: 0.062 | N68: =baler -> 7.51
B69: Bale Spear, 300HP-WT | C69: =SPEAR -> 1.54 | D69: 1.24 | E69: 0.21 | F69: 2.99 | G69: 0.75 | H69: 5.91 | I69: 1.688571429 | J69: =SPEAR -> 0.89 | K69: =SPEAR -> 7.55 | L69: =SPEAR -> 3.96 | M69: 0.198 | N69: =SPEAR -> 14.5
B70: 20' Flail Shredder, 300HP-CH | C70: =SHREDDER -> 1.33 | D70: 0.88 | E70: 0.21 | F70: 2.42 | G70: 0.72 | H70: 2.25 | I70: 0.6428571429 | J70: =SHREDDER -> 0.34 | K70: 3.31 | L70: 1.6 | M70: 0.08 | N70: =SHREDDER -> 7.33
B71: 20' Flail Shredder, 300HP-CH | C71: 1.33 | D71: 0.88 | E71: 0.21 | F71: 2.42 | G71: 0.72 | H71: 2.25 | I71: 0.6428571429 | J71: 0.34 | K71: 3.31 | L71: 1.6 | M71: 0.08 | N71: =SHREDDER -> 7.33
B72: =PU -> 0.75-Ton 4WD Pickup | C72: 0.73 | D72: 0.52 | E72: 0.5 | F72: 1.74 | G72: 0.75 | H72: 1.5 | I72: 0.4285714286 | J72: =PU -> 0.23 | K72: =PU -> 2.48 | L72: =PU -> 4.8 | M72: 0.24 | N72: =PU -> 9.02
B73: =ATV -> 4WD-ATV | C73: 0.093 | D73: 0.061 | E73: 0.01 | F73: 0.164 | G73: 0.02 | H73: 0.144 | I73: 0.04114285714 | J73: =ATV -> 0.022 | K73: =ATV -> 0.186 | L73: =ATV -> 0.88 | M73: 0.044 | N73: =ATV -> 1.23
B74: =BUCKET -> 50HP-WT with bucket | C74: 0.1915 | D74: 0.216 | E74: 0.037 | F74: 0.4445 | G74: 0.05 | H74: 0.4275 | I74: 0.1221428571 | J74: =BUCKET -> 0.064 | K74: =BUCKET -> 0.5415 | L74: =BUCKET -> 1.1 | M74: 0.055 | N74: =BUCKET -> 2.086
B75: Total | C75: =SUM(C55:C74) -> 18.4205 | D75: 12.208 | E75: 3.119 | F75: 33.7375 | G75: 10.815 | H75: 31.6805 | I75: 9.051571429 | J75: =SUM(J55:J74) -> 4.779 | K75: 49.23878571 | L75: 28.989 | M75: 1.44945 | N75: =SUM(N55:N74) -> 111.9652857
B76: 1Taxes, housing, insurance, and licensing
B77: Table 14. Per Acre Machinery Costs for Producing Dryland Organic Alfalfa, <15" Annual Rainfall (1 cutting)
K78: Total
F79: Total | K79: Variable | N79: Total
B80: Type of Machine | C80: Depreciation | D80: Interest | E80: THI&L1 | F80: Fixed Costs | G80: Repairs | H80: Fuel | I80: Fuel | J80: Lube | K80: Costs | L80: Labor | M80: Labor | N80: Costs
C81: ($/acre) | D81: ($/acre) | E81: ($/acre) | F81: ($/acre) | G81: ($/acre) | H81: ($/acre) | I81: (gal/acre) | J81: ($/acre) | K81: ($/acre) | L81: ($/acre) | M81: (hr/acre) | N81: ($/acre)
B82: =HARROW -> 53' Rotary Harrow, 300HP-CH | C82: 0.92 | D82: 0.65 | E82: 0.08 | F82: 1.65 | G82: 0.35 | H82: 1.24 | I82: 0.3542857143 | J82: =HARROW -> 0.19 | K82: 1.78 | L82: 1.01 | M82: 0.0505 | N82: =HARROW -> 4.44
B83: 53' Rotary Harrow, 300HP-CH | C83: 0.92 | D83: 0.65 | E83: 0.08 | F83: 1.65 | G83: 0.35 | H83: 1.24 | I83: 0.3542857143 | J83: 0.19 | K83: 1.78 | L83: 1.01 | M83: 0.0505 | N83: =HARROW -> 4.44
B84: =SWATHER -> 18' Swather | C84: 2.48 | D84: 1.27 | E84: 0.58 | F84: 4.33 | G84: 1.15 | H84: 1.65 | I84: 0.4714285714 | J84: =SWATHER -> 0.25 | K84: =SWATHER -> 3.05 | L84: =SWATHER -> 2.75 | M84: 0.1375 | N84: =SWATHER -> 10.13
B85: Side Delivery Rake, 300HP-CH | C85: =RAKE -> 1.11 | D85: 0.81 | E85: 0.12 | F85: 2.04 | G85: 0.57 | H85: 2.32 | I85: 0.6628571429 | J85: =RAKE -> 0.35 | K85: =RAKE -> 3.24 | L85: =RAKE -> 1.89 | M85: 0.0945 | N85: =RAKE -> 7.17
B86: 1500-lb Round Baler, 300HP-CH | C86: =baler -> 1.43 | D86: 0.89 | E86: 0.22 | F86: 2.54 | G86: 1.19 | H86: 2.21 | I86: 0.6314285714 | J86: =baler -> 0.33 | K86: =baler -> 3.73 | L86: =baler -> 1.24 | M86: 0.062 | N86: =baler -> 7.51
B87: Bale Spear, 300HP-WT | C87: =SPEAR -> 1.54 | D87: 1.24 | E87: 0.21 | F87: 2.99 | G87: 0.75 | H87: 5.91 | I87: 1.688571429 | J87: =SPEAR -> 0.89 | K87: =SPEAR -> 7.55 | L87: =SPEAR -> 3.96 | M87: 0.198 | N87: =SPEAR -> 14.5
B88: 20' Flail Shredder, 300HP-CH | C88: =SHREDDER -> 1.33 | D88: 0.88 | E88: 0.21 | F88: 2.42 | G88: 0.72 | H88: 2.25 | I88: 0.6428571429 | J88: =SHREDDER -> 0.34 | K88: 3.31 | L88: 1.6 | M88: 0.08 | N88: =SHREDDER -> 7.33
B89: 20' Flail Shredder, 300HP-CH | C89: 1.33 | D89: 0.88 | E89: 0.21 | F89: 2.42 | G89: 0.72 | H89: 2.25 | I89: 0.6428571429 | J89: 0.34 | K89: 3.31 | L89: 1.6 | M89: 0.08 | N89: =SHREDDER -> 7.33
B90: =PU -> 0.75-Ton 4WD Pickup | C90: 0.73 | D90: 0.52 | E90: 0.5 | F90: 1.74 | G90: 0.75 | H90: 1.5 | I90: 0.4285714286 | J90: =PU -> 0.23 | K90: =PU -> 2.48 | L90: =PU -> 4.8 | M90: 0.24 | N90: =PU -> 9.02
B91: =ATV -> 4WD-ATV | C91: 0.093 | D91: 0.061 | E91: 0.01 | F91: 0.164 | G91: 0.02 | H91: 0.144 | I91: 0.04114285714 | J91: =ATV -> 0.022 | K91: =ATV -> 0.186 | L91: =ATV -> 0.88 | M91: 0.044 | N91: =ATV -> 1.23
B92: =BUCKET -> 50HP-WT with bucket | C92: 0.1915 | D92: 0.216 | E92: 0.037 | F92: 0.4445 | G92: 0.05 | H92: 0.4275 | I92: 0.1221428571 | J92: =BUCKET -> 0.064 | K92: =BUCKET -> 0.5415 | L92: =BUCKET -> 1.1 | M92: 0.055 | N92: =BUCKET -> 2.086
B93: Total | C93: =SUM(C82:C92) -> 12.0745 | D93: 8.067 | E93: 2.257 | F93: 22.3885 | G93: 6.62 | H93: 21.1415 | I93: 6.040428571 | J93: 3.196 | K93: =SUM(K82:K92) -> 30.9575 | L93: 21.84 | M93: 1.092 | N93: =SUM(N82:N92) -> 75.186
B94: 1Taxes, housing, insurance, and licensing
B95: Table 15. Per Acre Machinery Costs for Producing Dryland Organic Alfalfa, >15" Annual Rainfall (2 cuttings)
K96: Total
F97: Total | K97: Variable | N97: Total
B98: Type of Machine | C98: Depreciation | D98: Interest | E98: THI&L1 | F98: Fixed Costs | G98: Repairs | H98: Fuel | I98: Fuel | J98: Lube | K98: Costs | L98: Labor | M98: Labor | N98: Costs
C99: ($/acre) | D99: ($/acre) | E99: ($/acre) | F99: ($/acre) | G99: ($/acre) | H99: ($/acre) | I99: (gal/acre) | J99: ($/acre) | K99: ($/acre) | L99: ($/acre) | M99: (hr/acre) | N99: ($/acre)
B100: =HARROW -> 53' Rotary Harrow, 300HP-CH | C100: 0.92 | D100: 0.65 | E100: 0.08 | F100: 1.65 | G100: 0.35 | H100: 1.24 | I100: 0.3542857143 | J100: =HARROW -> 0.19 | K100: 1.78 | L100: 1.01 | M100: 0.0505 | N100: =HARROW -> 4.44
B101: 53' Rotary Harrow, 300HP-CH | C101: 0.92 | D101: 0.65 | E101: 0.08 | F101: 1.65 | G101: 0.35 | H101: 1.24 | I101: 0.3542857143 | J101: 0.19 | K101: 1.78 | L101: 1.01 | M101: 0.0505 | N101: =HARROW -> 4.44
B102: =SWATHER -> 18' Swather | C102: 2.48 | D102: 1.27 | E102: 0.58 | F102: 4.33 | G102: 1.15 | H102: 1.65 | I102: 0.4714285714 | J102: =SWATHER -> 0.25 | K102: =SWATHER -> 3.05 | L102: =SWATHER -> 2.75 | M102: 0.1375 | N102: =SWATHER -> 10.13
B103: =RAKE -> Side Delivery Rake, 300HP-CH | C103: 1.11 | D103: 0.81 | E103: 0.12 | F103: 2.04 | G103: 0.57 | H103: 2.32 | I103: 0.6628571429 | J103: =RAKE -> 0.35 | K103: =RAKE -> 3.24 | L103: =RAKE -> 1.89 | M103: 0.0945 | N103: =RAKE -> 7.17
B104: 1500-lb Round Baler, 300HP-CH | C104: =baler -> 1.43 | D104: 0.89 | E104: 0.22 | F104: 2.54 | G104: 1.19 | H104: 2.21 | I104: 0.6314285714 | J104: =baler -> 0.33 | K104: =baler -> 3.73 | L104: =baler -> 1.24 | M104: 0.062 | N104: =baler -> 7.51
B105: =SWATHER -> 18' Swather | C105: 2.48 | D105: 1.27 | E105: 0.58 | F105: 4.33 | G105: 1.15 | H105: 1.65 | I105: 0.4714285714 | J105: =SWATHER -> 0.25 | K105: =SWATHER -> 3.05 | L105: =SWATHER -> 2.75 | M105: 0.1375 | N105: =SWATHER -> 10.13
B106: Bale spear, 300HP-WT | C106: =SPEAR -> 1.54 | D106: 1.24 | E106: 0.21 | F106: 2.99 | G106: 0.75 | H106: 5.91 | I106: 1.688571429 | J106: =SPEAR -> 0.89 | K106: =SPEAR -> 7.55 | L106: =SPEAR -> 3.96 | M106: 0.198 | N106: =SPEAR -> 14.5
B107: Side Delivery Rake, 300HP-CH | C107: =RAKE -> 1.11 | D107: 0.81 | E107: 0.12 | F107: 2.04 | G107: 0.57 | H107: 2.32 | I107: 0.6628571429 | J107: =RAKE -> 0.35 | K107: =RAKE -> 3.24 | L107: =RAKE -> 1.89 | M107: 0.0945 | N107: =RAKE -> 7.17
B108: 1500-lb Round Baler, 300HP-CH | C108: =baler -> 1.43 | D108: 0.89 | E108: 0.22 | F108: 2.54 | G108: 1.19 | H108: 2.21 | I108: 0.6314285714 | J108: =baler -> 0.33 | K108: =baler -> 3.73 | L108: =baler -> 1.24 | M108: 0.062 | N108: =baler -> 7.51
B109: Bale Spear, 300HP-WT | C109: =SPEAR -> 1.54 | D109: 1.24 | E109: 0.21 | F109: 2.99 | G109: 0.75 | H109: 5.91 | I109: 1.688571429 | J109: =SPEAR -> 0.89 | K109: =SPEAR -> 7.55 | L109: =SPEAR -> 3.96 | M109: 0.198 | N109: =SPEAR -> 14.5
B110: 20' Flail Shredder, 300HP-CH | C110: =SHREDDER -> 1.33 | D110: 0.88 | E110: 0.21 | F110: 2.42 | G110: 0.72 | H110: 2.25 | I110: 0.6428571429 | J110: =SHREDDER -> 0.34 | K110: 3.31 | L110: 1.6 | M110: 0.08 | N110: =SHREDDER -> 7.33
B111: 20' Flail Shredder, 300HP-CH | C111: 1.33 | D111: 0.88 | E111: 0.21 | F111: 2.42 | G111: 0.72 | H111: 2.25 | I111: 0.6428571429 | J111: 0.34 | K111: 3.31 | L111: 1.6 | M111: 0.08 | N111: =SHREDDER -> 7.33
B112: =PU -> 0.75-Ton 4WD Pickup | C112: 0.73 | D112: 0.52 | E112: 0.5 | F112: 1.74 | G112: 0.75 | H112: 1.5 | I112: 0.4285714286 | J112: =PU -> 0.23 | K112: =PU -> 2.48 | L112: =PU -> 4.8 | M112: 0.24 | N112: =PU -> 9.02
B113: =ATV -> 4WD-ATV | C113: 0.093 | D113: 0.061 | E113: 0.01 | F113: 0.164 | G113: 0.02 | H113: 0.144 | I113: 0.04114285714 | J113: =ATV -> 0.022 | K113: =ATV -> 0.186 | L113: =ATV -> 0.88 | M113: 0.044 | N113: =ATV -> 1.23
B114: =BUCKET -> 50HP-WT with bucket | C114: 0.1915 | D114: 0.216 | E114: 0.037 | F114: 0.4445 | G114: 0.05 | H114: 0.4275 | I114: 0.1221428571 | J114: =BUCKET -> 0.064 | K114: =BUCKET -> 0.5415 | L114: =BUCKET -> 1.1 | M114: 0.055 | N114: =BUCKET -> 2.086
B115: Total | C115: =SUM(C100:C114) -> 18.6345 | D115: 12.277 | E115: 3.387 | F115: 34.2885 | G115: 10.28 | H115: 33.2315 | I115: 9.494714286 | J115: 5.016 | K115: 48.5275 | L115: 31.68 | M115: 1.584 | N115: =SUM(N100:N114) -> 114.496
B116: 1Taxes, housing, insurance, and licensing

Sheet T16 Machinery Complement
B1: Back to Summary | D1: Back to Contents
B3: Table 16. Machinery Complement for Dryland Organic Alfalfa Production
H5: Annual
F6: Annual | H6: Repairs | I6: Gallons
B7: Type of | C7: Current | D7: Age When | E7: Years of | F7: Hours | G7: Salvage | H7: (Materials | I7: of | J7: Labor | K7: Acres
B8: Machine | C8: Value | D8: Purchased | E8: Life | F8: of Use | G8: Value | H8: & Labor) | I8: Fuel/Hr. | J8: Multiplier | K8: per Hour
C9: $ | G9: $ | H9: $
B10: 50HP-WT with bucket | C10: 15000 | D10: 10 | E10: 20 | F10: 150 | G10: 3500 | H10: 150 | I10: 2.85 | J10: 1.1
B11: 300HP-Challenger | C11: 95000 | D11: 5 | E11: 15 | F11: 600 | G11: 20000 | H11: 2500 | I11: 10 | J11: 1.1
B12: 23' Chisel | C12: 17500 | D12: 0 | E12: 15 | F12: 125 | G12: 2000 | H12: 700 | I12: 10 | J12: 1.1 | K12: 11.85
B13: 35' Tandem Disk | C13: 19000 | D13: 8 | E13: 12 | F13: 75 | G13: 1000 | H13: 750 | I13: 9 | J13: 1.1 | K13: 16
B14: 53' Rotary Harrow | C14: 19500 | D14: 0 | E14: 15 | F14: 100 | G14: 2000 | H14: 350 | I14: 10 | J14: 1.1 | K14: 20
B15: 50' Rotary Hoe | C15: 18000 | D15: 0 | E15: 10 | F15: 100 | G15: 7000 | H15: 400 | I15: 10 | J15: 1.1 | K15: 56
B16: Side Delivery Rake | C16: 12000 | D16: 0 | E16: 10 | F16: 200 | G16: 3000 | H16: 500 | I16: 10 | J16: 1.1 | K16: 12
B17: 40' Packer | C17: 9500 | D17: 0 | E17: 20 | F17: 100 | G17: 1000 | H17: 150 | I17: 9 | J17: 1.1 | K17: 25
B18: 30' Disk Drill | C18: 35000 | D18: 0 | E18: 12 | F18: 170 | G18: 5000 | H18: 2800 | I18: 12 | J18: 1.2 | K18: 13
B19: 20' Flail Shredder | C19: 14000 | D19: 0 | E19: 10 | F19: 150 | G19: 2500 | H19: 670 | I19: 10 | J19: 1.1 | K19: 12
B20: 18' Swather | C20: 66500 | D20: 0 | E20: 10 | F20: 250 | G20: 12500 | H20: 2500 | I20: 4.8 | J20: 1.1 | K20: 8.73
B21: 1500-lb Round Baler | C21: 20000 | D21: 0 | E21: 10 | F21: 150 | G21: 3300 | H21: 1784 | I21: 10 | J21: 1.2 | K21: 5
B22: Bale Spear | C22: 600 | D22: 0 | E22: 20 | F22: 150 | G22: 0 | H22: 0 | I22: 0 | J22: 1.2 | K22: 5.55
B23: 3/4-Ton Pickup | C23: 22000 | D23: 0 | E23: 10 | F23: 400 | G23: 7500 | H23: 1500 | I23: 12 | J23: 1.2
B24: 4WD-ATV | C24: 5000 | D24: 0 | E24: 10 | F24: 150 | G24: 1500 | H24: 75 | I24: 1.2 | J24: 1.1
